bitfinex/quotes_SOLUSD_20250206
["timestamp","ask_amount","ask_price","bid_price","bid_amount"]
[1738857720955,38.44184689,191.42,191.34,5.226]
[1738857720956,38.4418043,191.4,191.34,5.226]
[1738857721817,4.259e-05,191.42,191.32,5.2268]
[1738857721818,38.4418043,191.36,191.32,5.2268]
[1738857722022,38.44184689,191.42,191.36,0.37647]
[1738857722330,4.259e-05,191.42,191.41,20.50196]
[1738857722519,4.259e-05,191.42,191.39,5.2249]
[1738857722722,4.259e-05,191.42,191.25,1.0]
[1738857722926,4.259e-05,191.42,191.32,5.2266]
[1738857723119,4.259e-05,191.42,191.35,20.0]
[1738857723319,4.259e-05,191.42,191.41,38.8182743]
[1738857723513,4.259e-05,191.42,191.41,38.4418043]
[1738857723920,4.259e-05,191.42,191.41,38.9437643]
[1738857724121,6.558e-05,191.43,191.42,44.1678643]
[1738857724525,6.558e-05,191.43,191.4,43.6662043]
[1738857724731,6.558e-05,191.43,191.4,5.2244]
[1738857724932,6.558e-05,191.43,191.35,20.0]
[1738857725160,6.558e-05,191.43,191.32,10.8268]
[1738857725369,6.558e-05,191.43,191.39,0.063]
[1738857725521,0.03,191.42,191.39,0.063]
[1738857725923,0.03,191.42,191.4,38.8182743]
[1738857726150,0.03,191.42,191.41,5.2243]
[1738857726865,0.03,191.42,191.41,44.0425743]
[1738857727042,0.03,191.42,191.41,5.60077]
[1738857727237,0.03,191.42,191.41,5.2243]
[1738857727567,0.03,191.42,191.39,0.063]
[1738857727776,38.4418043,191.4,191.39,0.063]
[1738857728770,0.03,191.42,191.39,0.063]
[1738857729067,38.4418043,191.4,191.39,0.063]
[1738857729532,0.03,191.42,191.39,0.063]
[1738857729735,3.982e-05,191.45,191.39,0.8465579]
[1738857729954,80.83,191.6,191.45,33.41184853]
[1738857730147,5.167e-05,191.48,191.46,5.6]
[1738857730355,7.489e-05,191.49,191.47,19.91963281]
[1738857730568,0.03,191.6,191.53,0.25098]
[1738857730750,0.03,191.6,191.59,38.9437643]
[1738857730937,0.03,191.6,191.59,44.4182743]
[1738857731140,0.03,191.6,191.59,44.5437643]
[1738857731338,0.03,191.72,191.68,0.12549]
[1738857731548,0.03,191.72,191.68,0.90787948]
[1738857731765,0.03,191.72,191.68,0.12549]
[1738857731944,0.03,191.72,191.71,0.25098]
[1738857732262,0.12818035,191.72,191.69,5.2167]
[1738857732439,0.12818035,191.72,191.64,5.2181]
[1738857732773,0.12818035,191.72,191.67,58.4418043]
[1738857733275,0.12818035,191.72,191.7,0.25098]
[1738857733440,0.12818035,191.72,191.68,38.4418043]
[1738857733840,38.56998465,191.72,191.67,20.0]
[1738857734040,0.12818035,191.72,191.67,20.0]
[1738857734345,38.4418043,191.71,191.66,5.58]
[1738857734589,38.4418043,191.68,191.62,5.2185]
[1738857734791,38.4418043,191.69,191.62,43.6603043]
[1738857735104,0.12818035,191.72,191.66,38.4418043]
[1738857735303,38.56998465,191.72,191.66,0.25098]
[1738857735614,38.56998465,191.72,191.66,38.6927843]
[1738857735615,0.12818035,191.72,191.66,38.6927843]
[1738857735766,0.12818035,191.72,191.67,38.4418043]
[1738857735967,0.12818035,191.72,191.65,20.0]
[1738857736170,0.12818035,191.72,191.71,38.4418043]
[1738857736367,0.12818035,191.72,191.71,43.9089843]
[1738857736862,0.12818035,191.72,191.71,44.1599643]
[1738857737493,8.035e-05,191.72,191.71,58.35410963]
[1738857737791,5.736e-05,191.75,191.74,20.50196]
[1738857737992,5.736e-05,191.75,191.74,65.30573978]
[1738857738194,6.985e-05,191.76,191.74,77.93561283]
[1738857738390,9.977e-05,191.77,191.76,0.50196]
[1738857738586,9.977e-05,191.77,191.76,38.9437643]
[1738857738790,6.413e-05,191.81,191.8,20.50196]
[1738857738971,6.413e-05,191.81,191.8,58.9437643]
[1738857739171,6.413e-05,191.81,191.8,20.25098]
[1738857739493,6.413e-05,191.81,191.75,19.03479056]
[1738857739494,6.413e-05,191.81,191.77,38.4418043]
[1738857739871,5.21356413,191.81,191.71,38.4418043]
[1738857740071,5.21356413,191.81,191.66,5.58]
[1738857740072,6.413e-05,191.81,191.74,38.4418043]
[1738857740271,6.413e-05,191.81,191.79,20.0]
[1738857740471,6.413e-05,191.81,191.78,0.25098]
[1738857740472,6.413e-05,191.81,191.8,20.50196]
[1738857740714,6.413e-05,191.81,191.8,20.0]
[1738857740992,6.413e-05,191.81,191.73,5.2156]
[1738857741171,6.413e-05,191.81,191.78,0.50196]
[1738857741370,6.413e-05,191.81,191.8,20.0]
[1738857741568,6.413e-05,191.81,191.76,38.4418043]
[1738857741803,6.413e-05,191.81,191.76,0.25098]
[1738857741974,6.413e-05,191.81,191.76,38.4418043]
[1738857742169,6.413e-05,191.81,191.8,38.9437643]
[1738857742373,6.413e-05,191.81,191.8,49.7374643]
[1738857742897,6.413e-05,191.81,191.8,49.4864843]
[1738857743073,6.413e-05,191.81,191.8,10.7937]
[1738857743399,6.413e-05,191.81,191.8,49.2355043]
[1738857744595,6.413e-05,191.81,191.8,49.7374643]
[1738857745101,6.413e-05,191.81,191.8,11.29566]
[1738857745306,6.413e-05,191.81,191.8,11.17017]
[1738857745606,6.413e-05,191.81,191.77,5.2145]
[1738857745794,6.413e-05,191.81,191.75,43.6566043]
[1738857746102,0.03,191.88,191.81,2.0]
[1738857746308,0.99995669,192.06,191.88,0.50196]
[1738857746309,13.0178,192.05,191.88,0.50196]
[1738857746473,38.4418043,192.01,191.91,20.50196]
[1738857747500,38.4418043,191.97,191.91,25.2107]
[1738857747710,38.4418043,191.97,191.91,5.2107]
[1738857748293,38.4418043,192.0,191.91,64.1544643]
[1738857748504,38.4418043,192.01,191.91,64.1544643]
[1738857748800,38.4418043,192.03,191.95,0.37647]
[1738857749100,20.0,192.03,191.95,0.37647]
[1738857749399,38.4418043,192.0,191.94,20.0]
[1738857749584,18.61874853,192.06,191.92,0.37647]
[1738857749585,38.4418043,191.98,191.92,0.37647]
[1738857749904,6.271,191.98,191.88,5.58]
[1738857750115,38.4418043,191.92,191.88,5.58]
[1738857750401,38.4418043,191.89,191.83,5.2127]
[1738857750580,20.0,191.88,191.8,5.2137]
[1738857750873,20.0,191.88,191.76,5.58]
[1738857750874,20.0,191.87,191.76,5.58]
[1738857751076,21.0,191.83,191.75,0.063]
[1738857751277,20.0,191.79,191.75,0.063]
[1738857751478,5.2148,191.76,191.64,5.58]
[1738857751696,38.4418043,191.67,191.63,8.14752173]
[1738857751904,38.4418043,191.73,191.65,38.4418043]
[1738857752210,38.4418043,191.78,191.73,20.0]
[1738857752380,7.9257,191.82,191.7,0.12549]
[1738857752711,13.1389,191.82,191.7,0.37647]
[1738857753013,7.9257,191.82,191.72,0.12549]
[1738857753373,7.9257,191.82,191.71,0.12549]
[1738857753596,38.4418043,191.75,191.68,43.6588043]
[1738857754013,38.4418043,191.76,191.69,38.8182743]
[1738857754617,38.4418043,191.85,191.75,38.4418043]
[1738857754919,5.2119,191.87,191.74,0.12549]
[1738857754920,38.4418043,191.88,191.81,38.4418043]
[1738857755074,44.6983043,191.9,191.82,38.4418043]
[1738857755274,6.2565,191.9,191.85,38.4418043]
[1738857755504,1.6336,191.93,191.84,0.50196]
[1738857755719,38.4418043,191.89,191.83,25.2127]
[1738857756203,38.4418043,191.92,191.85,38.4418043]
[1738857756378,1.6336,191.93,191.85,38.4418043]
[1738857756379,40.0754043,191.93,191.85,38.4418043]
[1738857756701,38.4418043,191.96,191.88,38.4418043]
[1738857756889,38.4418043,191.93,191.86,38.4418043]
[1738857757294,38.4418043,191.87,191.8,44.0218043]
[1738857757499,20.0,191.91,191.8,44.0218043]
[1738857757811,38.4418043,191.85,191.78,44.0218043]
[1738857758007,38.4418043,191.84,191.78,5.58]
[1738857758205,5.2108,191.91,191.78,5.58]
[1738857758510,13.41184853,191.9,191.81,20.0]
[1738857758689,20.25098,191.95,191.82,0.50196]
[1738857758690,25.2099,191.95,191.82,0.50196]
[1738857758883,1.99995669,191.91,191.76,18.2519]
[1738857759203,1.99995669,191.91,191.78,44.0218043]
[1738857759204,38.4418043,191.86,191.78,44.0218043]
[1738857759418,38.4418043,191.86,191.79,38.4418043]
[1738857759613,38.4418043,191.86,191.78,5.58]
[1738857759614,38.4418043,191.84,191.78,5.58]
[1738857759821,38.4418043,191.83,191.78,5.58]
[1738857760116,38.4418043,191.84,191.78,5.58]
[1738857760721,38.4418043,191.8,191.78,5.58]
[1738857761213,15.01054853,191.86,191.78,5.58]
[1738857761214,38.4418043,191.83,191.78,5.58]
[1738857761444,0.99995669,191.82,191.67,5.2173]
[1738857761599,38.4418043,191.78,191.7,43.6581043]
[1738857761797,38.4418043,191.78,191.71,38.4418043]
[1738857762190,38.4418043,191.79,191.71,38.4418043]
[1738857762395,38.4418043,191.77,191.7,43.6581043]
[1738857762615,38.4418043,191.76,191.69,44.0218043]
[1738857762813,19.62520522,191.81,191.67,38.4418043]
[1738857762814,38.4418043,191.74,191.67,38.4418043]
[1738857762995,38.4418043,191.74,191.66,43.6593043]
[1738857763397,38.4418043,191.74,191.67,38.4418043]
[1738857763612,38.4418043,191.72,191.64,38.4418043]
[1738857763803,5.2156,191.73,191.64,5.58]
[1738857763804,38.4418043,191.7,191.64,5.58]
[1738857764100,13.41184853,191.72,191.64,5.58]
[1738857764307,38.4418043,191.71,191.64,5.58]
[1738857764615,38.4418043,191.7,191.64,5.58]
[1738857765204,38.4418043,191.73,191.66,38.4418043]
[1738857765519,38.4418043,191.71,191.64,44.0218043]
[1738857765701,38.4418043,191.69,191.64,5.58]
[1738857765896,38.4418043,191.73,191.65,38.4418043]
[1738857766328,38.4418043,191.7,191.64,5.2181]
[1738857766514,38.4418043,191.68,191.61,44.0218043]
[1738857766716,58.4418043,191.71,191.63,38.4418043]
[1738857766919,38.4418043,191.69,191.62,38.4418043]
[1738857767402,7.21525669,191.74,191.58,38.4418043]
[1738857767403,38.4418043,191.65,191.58,38.4418043]
[1738857767604,38.4418043,191.63,191.57,5.2199]
[1738857767832,38.4418043,191.62,191.55,43.7251043]
[1738857768120,38.6927843,191.7,191.59,38.4418043]
[1738857768121,38.4418043,191.66,191.59,38.4418043]
[1738857768340,38.4418043,191.68,191.61,38.4418043]
[1738857768743,38.4418043,191.69,191.62,38.4418043]
[1738857769034,80.8,191.73,191.67,38.4418043]
[1738857769340,80.8,191.73,191.6,0.25098]
[1738857769341,38.4418043,191.7,191.63,38.4418043]
[1738857769547,38.4418043,191.72,191.65,38.4418043]
[1738857769701,80.8,191.73,191.62,5.2186]
[1738857769907,13.41184853,191.72,191.62,5.2186]
[1738857770208,13.41184853,191.68,191.59,5.2194]
[1738857770545,34.41180522,191.7,191.58,5.58]
[1738857770835,20.0,191.65,191.55,0.063]
[1738857771001,38.4418043,191.64,191.57,38.4418043]
[1738857771196,38.4418043,191.67,191.59,38.4418043]
[1738857771439,38.4418043,191.71,191.63,38.4418043]
[1738857771600,80.8,191.73,191.65,5.2178]
[1738857772167,0.09634075,191.66,191.64,38.4418043]
[1738857772350,0.09634075,191.66,191.64,43.6598043]
[1738857772647,0.09634075,191.66,191.65,38.4418043]
[1738857773061,0.09634075,191.66,191.65,44.2727843]
[1738857773557,0.09634075,191.66,191.65,49.2396043]
[1738857774062,0.09634075,191.66,191.65,49.7415643]
[1738857774365,7.312e-05,191.7,191.69,20.50196]
[1738857774563,4.634e-05,191.72,191.69,1.28420736]
[1738857774880,2.052e-05,191.75,191.74,20.50196]
[1738857775230,2.052e-05,191.75,191.74,0.50196]
[1738857775955,2.052e-05,191.75,191.74,5.71726]
[1738857776368,1.6303,191.86,191.8,38.4418043]
[1738857776726,1.6303,191.86,191.79,5.58]
[1738857776945,1.6303,191.86,191.8,0.12549]
[1738857777428,6.2396,191.89,191.83,38.4418043]
[1738857777630,38.4418043,191.92,191.85,38.4418043]
[1738857777858,38.4418043,191.92,191.85,43.6541043]
[1738857778153,38.4418043,191.93,191.86,38.4418043]
[1738857778333,1.5366,191.94,191.85,43.6541043]
[1738857778334,13.41184853,191.91,191.85,43.6541043]
[1738857778537,38.4418043,191.92,191.85,43.6541043]
[1738857778954,38.4418043,191.92,191.8,38.8182743]
[1738857778955,38.4418043,191.9,191.83,43.6545043]
[1738857779169,38.4418043,191.85,191.79,5.58]
[1738857779325,13.53733853,191.92,191.79,44.0218043]
[1738857779529,13.53733853,191.92,191.8,38.4418043]
[1738857779832,13.41184853,191.88,191.8,38.4418043]
[1738857780035,38.4418043,191.85,191.79,5.58]
[1738857780464,38.4418043,191.85,191.75,0.12549]
[1738857780465,38.4418043,191.81,191.74,38.4418043]
[1738857780766,1.0,191.86,191.71,5.2162]
[1738857780767,0.99995669,191.91,191.76,20.0]
[1738857780966,5.211,191.9,191.77,0.50196]
[1738857781135,13.41184853,191.89,191.76,20.0]
[1738857781335,13.41184853,191.85,191.76,20.0]
[1738857781554,13.41184853,191.85,191.73,5.58]
[1738857781555,39.88594853,191.82,191.73,5.58]
[1738857781741,40.88590522,191.82,191.71,20.0]
[1738857781942,44.9159043,191.82,191.75,38.4418043]
[1738857782175,6.3029,191.88,191.81,38.4418043]
[1738857782369,7.8395,191.94,191.83,0.25098]
[1738857782538,15.04945669,191.94,191.82,5.58]
[1738857782734,13.53733853,191.92,191.82,5.58]
[1738857782954,14.53729522,191.92,191.81,5.58]
[1738857783237,27.32538,191.94,191.81,5.58]
[1738857783238,14.41180522,191.9,191.81,5.58]
[1738857783448,38.4418043,191.85,191.81,5.58]
[1738857783762,38.4418043,191.84,191.76,44.0218043]
[1738857783928,13.41184853,191.83,191.76,44.0218043]
[1738857784132,13.41184853,191.82,191.76,49.2364043]
[1738857784564,38.4418043,191.8,191.73,38.4418043]
[1738857784853,51.85365283,191.78,191.72,5.58]
[1738857785064,38.4418043,191.8,191.73,38.4418043]
[1738857785355,38.4418043,191.8,191.72,5.58]
[1738857785356,38.4418043,191.76,191.72,5.58]
[1738857785657,51.85365283,191.75,191.72,5.58]
[1738857785856,13.41184853,191.73,191.67,43.6588043]
[1738857786056,38.4418043,191.75,191.68,38.4418043]
[1738857786361,13.41184853,191.74,191.67,43.6588043]
[1738857786661,13.41184853,191.7,191.65,13.72752173]
[1738857786957,51.85365283,191.71,191.65,13.72752173]
[1738857787359,13.41184853,191.71,191.65,52.16932603]
[1738857787569,13.41184853,191.71,191.65,8.14752173]
[1738857787570,13.41184853,191.68,191.65,8.14752173]
[1738857787865,13.41184853,191.66,191.65,8.14752173]
[1738857788034,38.4418043,191.71,191.65,8.14752173]
[1738857788231,13.41184853,191.69,191.65,8.14752173]
[1738857788564,38.4418043,191.73,191.65,43.6595043]
[1738857788860,38.4418043,191.74,191.67,38.4418043]
[1738857789031,38.4418043,191.76,191.68,38.4418043]
[1738857789232,38.4418043,191.78,191.71,38.4418043]
[1738857789461,20.0,191.76,191.7,38.4418043]
[1738857789644,13.41184853,191.76,191.7,38.4418043]
[1738857789842,38.4418043,191.78,191.71,38.4418043]
[1738857790045,38.4418043,191.84,191.76,38.4418043]
[1738857790247,13.41184853,191.82,191.75,38.4418043]
[1738857790466,38.4418043,191.83,191.75,38.4418043]
[1738857790660,38.4418043,191.85,191.78,0.12549]
[1738857790888,44.7944043,191.87,191.79,38.4418043]
[1738857791035,82.13,191.92,191.78,0.12549]
[1738857791036,38.4718043,191.92,191.83,38.4418043]
[1738857791241,38.4718043,191.92,191.85,38.4418043]
[1738857791242,0.03,191.92,191.85,38.4418043]
[1738857791744,0.03,191.92,191.86,38.4418043]
[1738857791931,0.03,191.92,191.81,0.12549]
[1738857792137,0.11002424,191.91,191.89,38.4418043]
[1738857792876,0.11002424,191.91,191.86,38.4418043]
[1738857793050,0.11002424,191.91,191.88,38.4418043]
[1738857793256,0.11002424,191.91,191.89,38.4418043]
[1738857793452,0.05319478,191.93,191.9,38.4418043]
[1738857793646,0.05319478,191.93,191.92,38.4418043]
[1738857794174,0.05319478,191.93,191.92,43.6523043]
[1738857794340,0.05319478,191.93,191.92,43.7777943]
[1738857794543,9.478e-05,191.93,191.92,44.1542643]
[1738857797051,5.625e-05,191.96,191.95,20.50196]
[1738857797262,5.625e-05,192.01,192.0,0.50196]
[1738857797446,5.625e-05,192.01,192.0,38.5672943]
[1738857798045,5.625e-05,192.01,192.0,38.9437643]
[1738857798276,5.625e-05,192.01,192.0,44.1520643]
[1738857798579,5.625e-05,192.01,192.0,43.7755943]
[1738857798873,5.625e-05,192.01,192.0,82.2173986]
[1738857799275,5.625e-05,192.01,192.0,43.7755943]
[1738857799464,5.625e-05,192.01,191.98,38.4418043]
[1738857799649,5.625e-05,192.01,191.97,43.6507043]
[1738857799848,13.41184853,191.99,191.9,10.791]
[1738857800058,5.625e-05,192.01,191.88,5.58]
[1738857800290,5.625e-05,192.01,191.93,0.50196]
[1738857800458,5.625e-05,192.01,191.95,0.50196]
[1738857800652,5.625e-05,192.01,191.97,20.50196]
[1738857800855,5.625e-05,192.01,192.0,0.50196]
[1738857801158,5.625e-05,192.01,192.0,77.3855686]
[1738857802391,5.625e-05,192.01,192.0,49.7120643]
[1738857802685,5.625e-05,192.01,192.0,88.1538686]
[1738857803591,5.625e-05,192.01,192.0,49.7120643]
[1738857803952,5.625e-05,192.01,192.0,49.2101043]
[1738857804156,5.625e-05,192.01,191.99,38.4418043]
[1738857804376,5.625e-05,192.01,191.98,38.4418043]
[1738857804580,5.625e-05,192.01,191.97,44.0018043]
[1738857804992,5.625e-05,192.01,191.97,38.4418043]
[1738857805204,5.625e-05,192.01,191.98,38.4418043]
[1738857805485,5.625e-05,192.01,192.0,38.5672943]
[1738857805787,5.625e-05,192.01,192.0,38.9437643]
[1738857806295,5.625e-05,192.01,192.0,82.5938686]
[1738857807584,6.1084,192.12,192.04,0.12549]
[1738857807787,38.4418043,192.1,192.03,38.4418043]
[1738857808088,13.41184853,192.11,192.03,38.4418043]
[1738857808089,13.41184853,192.11,192.06,38.4418043]
[1738857808384,6.1084,192.12,192.07,5.2064]
[1738857808563,1.6414,192.14,192.09,38.4418043]
[1738857808978,1.6414,192.14,192.08,38.4418043]
[1738857809471,13.41184853,192.13,192.08,38.4418043]
[1738857809709,13.41184853,192.11,192.06,5.2066]
[1738857809887,13.41184853,192.11,192.05,38.4418043]
[1738857810087,13.41184853,192.11,192.05,43.6487043]
[1738857810298,51.85365283,192.11,192.04,38.4418043]
[1738857810524,13.41184853,192.11,192.06,38.4418043]
[1738857810689,38.4418043,192.13,192.06,38.4418043]
[1738857810894,13.41184853,192.13,192.07,38.4418043]
[1738857811095,40.0832043,192.14,192.08,38.4418043]
[1738857811096,1.6414,192.14,192.08,38.4418043]
[1738857811831,0.03,192.11,192.08,38.4418043]
[1738857812033,0.03,192.11,192.04,0.12549]
[1738857812034,0.03,192.11,192.09,38.4418043]
[1738857812203,0.11386235,192.09,192.07,0.12549]
[1738857812711,0.11386235,192.09,192.06,25.2064]
[1738857813024,0.11386235,192.09,192.07,5.56]
[1738857814090,0.11386235,192.09,192.07,44.0018043]
[1738857814294,0.11386235,192.09,192.07,5.56]
[1738857814495,5.31966235,192.09,192.07,5.56]
[1738857814789,51.85365283,192.08,192.01,38.4418043]
[1738857814995,13.41184853,192.05,192.0,38.4418043]
[1738857815211,51.85365283,192.05,191.97,5.56]
[1738857815721,38.4418043,192.0,191.93,38.4418043]
[1738857815935,13.41184853,191.98,191.92,38.5048043]
[1738857816136,13.41184853,191.98,191.92,0.063]
[1738857816427,18.62204853,191.93,191.92,0.063]
[1738857816603,20.0,191.9,191.84,44.0018043]
[1738857816816,13.41184853,191.89,191.84,5.56]
[1738857817010,5.2099,191.95,191.87,20.0]
[1738857817230,38.4418043,192.02,191.94,38.4418043]
[1738857817538,7.682,192.04,191.98,38.4418043]
[1738857817843,7.682,192.04,191.99,38.4418043]
[1738857818142,7.682,192.04,192.01,38.4418043]
[1738857818332,43.76176665,192.09,191.97,5.68549]
[1738857818333,0.11386235,192.09,192.03,38.4418043]
[1738857818533,0.11386235,192.09,192.08,38.4418043]
[1738857818924,0.11386235,192.09,192.08,38.5672943]
[1738857819240,0.11386235,192.09,192.08,38.4418043]
[1738857819943,0.11386235,192.09,192.08,38.5672943]
[1738857820145,0.11386235,192.09,192.08,38.4418043]
[1738857820540,0.11386235,192.09,192.06,38.4418043]
[1738857820706,0.11386235,192.09,192.05,5.2069]
[1738857820907,0.11386235,192.09,192.05,33.83198871]
[1738857821121,0.11386235,192.09,192.02,0.50196]
[1738857821345,0.11386235,192.09,192.07,33.83198871]
[1738857821542,0.11386235,192.09,192.06,0.12549]
[1738857821714,0.11386235,192.09,192.08,33.83198871]
[1738857821913,0.11386235,192.09,192.08,33.95747871]
[1738857822255,0.11386235,192.09,192.08,33.83198871]
[1738857822929,6.235e-05,192.09,192.08,33.83198871]
[1738857823244,9.962e-05,192.14,192.11,0.50196]
[1738857823542,9.962e-05,192.14,192.1,21.0]
[1738857823543,9.962e-05,192.14,192.13,0.50196]
[1738857823716,1.259e-05,192.16,192.13,0.50196]
[1738857823917,1.259e-05,192.16,192.13,0.37647]
[1738857824115,1.259e-05,192.16,192.14,0.12549]
[1738857824448,1.259e-05,192.16,192.15,33.83198871]
[1738857824849,1.259e-05,192.16,192.15,39.03618871]
[1738857825327,1.259e-05,192.16,192.15,33.83198871]
[1738857825728,1.259e-05,192.16,192.14,33.83198871]
[1738857826044,1.259e-05,192.16,192.15,33.83198871]
[1738857826655,1.259e-05,192.16,192.15,34.20845871]
[1738857826945,8.662e-05,192.17,192.16,0.37647]
[1738857827149,8.662e-05,192.17,192.16,34.20845871]
[1738857827350,8.662e-05,192.17,192.16,33.83198871]
[1738857827753,8.662e-05,192.17,192.16,33.95747871]
[1738857828847,8.662e-05,192.17,192.16,39.16137871]
[1738857829445,8.662e-05,192.17,192.16,39.53784871]
[1738857829949,0.063,192.21,192.2,20.0]
[1738857830127,40.17818871,192.21,192.06,5.56]
[1738857830334,13.41184853,192.17,192.06,5.56]
[1738857830531,33.83198871,192.19,192.12,33.83198871]
[1738857830851,33.83198871,192.2,192.13,33.83198871]
[1738857831530,6.3462,192.21,192.16,33.83198871]
[1738857831852,53.59003724,192.21,192.14,33.83198871]
[1738857832053,19.75804853,192.21,192.15,33.83198871]
[1738857832354,0.10251185,192.17,192.13,33.83198871]
[1738857832653,0.10251185,192.17,192.11,33.83198871]
[1738857832654,13.51436038,192.17,192.11,33.83198871]
[1738857832946,13.51436038,192.17,192.11,39.03718871]
[1738857833122,33.83198871,192.16,192.09,39.03768871]
[1738857833527,0.10251185,192.17,192.11,33.83198871]
[1738857833741,13.51436038,192.17,192.09,5.2057]
[1738857833941,33.83198871,192.16,192.09,39.03768871]
[1738857834344,13.41184853,192.15,192.09,33.83198871]
[1738857834949,13.41184853,192.15,192.08,39.03788871]
[1738857835137,13.41184853,192.15,192.02,0.12549]
[1738857835138,47.24383724,192.11,192.04,33.83198871]
[1738857835458,33.83198871,192.11,192.03,33.83198871]
[1738857835624,5.2045,192.15,192.02,5.2077]
[1738857835625,5.204,192.16,192.14,0.063]
[1738857835826,1.65261185,192.17,192.14,0.063]
[1738857836130,1.68261185,192.17,192.14,0.063]
[1738857837127,13.41184853,192.16,192.14,0.063]
[1738857837353,33.83198871,192.15,192.14,0.063]
[1738857837555,47.24383724,192.16,192.14,0.063]
[1738857837852,13.41184853,192.16,192.14,0.063]
[1738857840433,47.24383724,192.16,192.14,0.063]
[1738857840637,47.36932724,192.15,192.14,0.063]
[1738857840854,47.36932724,192.15,192.03,5.56]
[1738857840855,13.41184853,192.1,192.03,5.56]
[1738857841059,13.41184853,192.1,192.01,0.063]
[1738857841060,13.41184853,192.06,192.01,0.063]
[1738857841230,20.0,192.03,192.01,0.063]
[1738857841436,13.41184853,192.02,192.01,0.063]
[1738857841642,5.2066,192.07,192.01,0.063]
[1738857841840,6.5378,192.08,192.01,0.063]
[1738857842056,5.205,192.13,192.02,5.2077]
[1738857842236,6.6633,192.14,192.08,33.83198871]
[1738857842551,6.6633,192.14,192.09,33.83198871]
[1738857842763,6.6633,192.14,192.04,5.56]
[1738857842764,33.83198871,192.13,192.06,33.83198871]
[1738857842943,13.41184853,192.1,192.05,33.83198871]
[1738857843137,13.41184853,192.1,192.06,33.83198871]
[1738857843478,5.2051,192.12,192.06,33.83198871]
[1738857843479,13.41184853,192.12,192.06,33.83198871]
[1738857843677,47.24383724,192.13,192.06,33.83198871]
[1738857843966,13.41184853,192.13,192.06,33.83198871]
[1738857844168,33.83198871,192.09,192.02,33.83198871]
[1738857844349,13.41184853,192.07,192.01,0.063]
[1738857844663,13.53733853,192.08,192.01,0.063]
[1738857844958,0.12549,192.06,192.01,0.063]
[1738857845274,46.94383724,192.02,192.01,0.063]
[1738857845570,47.32030724,192.02,192.01,0.063]
[1738857845867,53.63470724,192.02,192.01,0.063]
[1738857846070,13.41184853,191.96,191.94,0.063]
[1738857846235,33.83198871,191.95,191.94,0.063]
[1738857846436,47.36932724,191.95,191.94,0.063]
[1738857846873,47.62030724,191.95,191.94,0.063]
[1738857847040,14.78827522,191.94,191.93,6.48092173]
[1738857847256,15.78827522,191.93,191.92,6.519e-05]
[1738857847450,21.12549,191.89,191.81,0.063]
[1738857847663,47.24383724,191.82,191.81,0.063]
[1738857847994,33.83198871,191.88,191.81,33.89498871]
[1738857848170,1.5962,191.98,191.83,0.25098]
[1738857848489,11.8242,192.01,191.87,0.12549]
[1738857848689,13.41184853,191.97,191.87,5.56]
[1738857848984,20.0,191.92,191.87,5.56]
[1738857849288,33.83198871,191.91,191.87,5.56]
[1738857849653,13.41184853,191.89,191.87,5.56]
[1738857849871,33.83198871,191.9,191.87,5.56]
[1738857850191,33.83198871,191.91,191.87,5.56]
[1738857850804,13.41184853,191.87,191.81,0.063]
[1738857851014,13.41184853,191.87,191.81,33.89498871]
[1738857851170,13.41184853,191.88,191.82,33.83198871]
[1738857851562,33.83198871,191.89,191.81,0.063]
[1738857851563,33.83198871,191.83,191.81,0.063]
[1738857851794,13.41184853,191.83,191.81,0.063]
[1738857851966,47.24383724,191.82,191.81,0.063]
[1738857852174,47.34763949,191.82,191.81,0.063]
[1738857852593,47.47312949,191.82,191.81,0.063]
[1738857852961,52.68632949,191.82,191.81,0.063]
[1738857853303,52.68632949,191.82,191.73,33.83198871]
[1738857853304,1.99995669,191.8,191.72,0.063]
[1738857853483,34.66278522,191.78,191.72,0.063]
[1738857853683,13.78831853,191.76,191.75,0.0001]
[1738857854497,33.95747871,191.76,191.75,0.0001]
[1738857854809,1.99995669,191.73,191.72,0.063]
[1738857855008,1.99995669,191.73,191.59,0.063]
[1738857855009,0.12549,191.68,191.59,0.063]
[1738857855307,20.0,191.61,191.59,0.063]
[1738857855480,13.41184853,191.6,191.59,0.063]
[1738857856108,33.83198871,191.63,191.59,0.063]
[1738857856320,33.83198871,191.69,191.6,33.83198871]
[1738857856481,33.83198871,191.69,191.62,33.83198871]
[1738857856682,33.83198871,191.69,191.59,0.063]
[1738857856683,33.83198871,191.68,191.61,33.83198871]
[1738857856897,13.41184853,191.67,191.61,33.83198871]